fUSD/lending_fUSD_20260116
["ID","MTS","AMOUNT","RATE_DAILY","PERIOD"]
[402203238,1768596633296,-502.81706952,0.00015572,2]
[402203239,1768596633305,-500.0,0.00015572,2]
[402203240,1768596633315,-458.62181078,0.00015572,2]
[402203241,1768596633324,-500.0,0.00015572,2]
[402203242,1768596633334,-500.0,0.00015572,2]
[402203243,1768596633343,-500.0,0.00015572,2]
[402203244,1768596633352,-500.0,0.00015572,2]
[402203245,1768596633361,-500.0,0.00015572,2]
[402203246,1768596633371,-500.0,0.00015572,2]
[402203247,1768596633382,-500.0,0.00015572,2]
[402203248,1768596633392,-500.0,0.00015572,2]
[402203249,1768596633401,-500.0,0.00015572,2]
[402203250,1768596633410,-842.30369124,0.00015593,2]
[402203251,1768596633420,-1756.55117732,0.00015713,2]
[402203252,1768596633433,-4289.11827447,0.00015713,2]
[402203253,1768596633442,-166.66,0.00015755,2]
[402203254,1768596633454,-200.06677818,0.00015773,2]
[402203255,1768596633466,-299.93322182,0.00015773,2]
[402203256,1768596633475,-265.48546119,0.00015773,2]
[402203257,1768596633486,-234.51453881,0.00015773,2]
[402203258,1768596633496,-500.0,0.00015773,2]
[402203259,1768596633505,-500.0,0.00015773,2]
[402203260,1768596633515,-500.0,0.00015773,2]
[402203261,1768596633524,-564.20207547,0.00015793,2]
[402203262,1768596633533,-245.66469535,0.00015827,2]
[402203263,1768596633548,-9.33530465,0.00015827,2]
[402203264,1768596633558,-500.0,0.00015828,2]
[402203265,1768596633567,-25.67745535,0.000159,5]
[402203266,1768596633578,-6053.8,0.000159,5]
[402203268,1768596638198,-150.0,0.00015479,2]
[402203269,1768596638209,-150.0,0.00015479,2]
[402203270,1768596638219,-151.0,0.00015499,2]
[402203271,1768596638228,-141.47286909,0.00015499,2]
[402203304,1768596640545,-1.7e-07,0.00015499,2]
[402203305,1768596640580,-9.52713074,0.00015499,2]
[402203306,1768596640590,-1820.52254465,0.000159,5]
[402203307,1768596640600,-600.0,0.00015941,2]
[402203308,1768596640610,-375.64,0.00015949,2]
[402203309,1768596640620,-331.96649877,0.00015987,2]
[402203310,1768596640629,-500.0,0.00015999,2]
[402203311,1768596640639,-500.00000017,0.00015999,2]
[402203312,1768596640648,-842.30369124,0.00016054,2]
[402203313,1768596640658,-600.0,0.00016058,2]
[402203314,1768596640666,-195.0,0.00016058,2]
[402203315,1768596640675,-250.0,0.00016058,2]
[402203316,1768596640685,-193.0,0.00016058,2]
[402203317,1768596640694,-300.0,0.00016058,2]
[402203318,1768596640703,-300.0,0.00016058,2]
[402203319,1768596640712,-250.0,0.00016059,2]
[402203320,1768596640721,-250.0,0.00016063,2]
[402203321,1768596640731,-166.66,0.00016067,2]
[402203322,1768596640740,-6045.66945179,0.00016077,2]
[402203323,1768596640749,-1680.0,0.00016158,2]
[402203324,1768596640759,-3240.0,0.00016258,2]
[402203325,1768596640768,-189.0,0.00016301,2]
[402203326,1768596640777,-1000.0,0.00016321,2]
[402203327,1768596640786,-1000.0,0.00016321,2]
[402203328,1768596640799,-166.66,0.00016379,2]
[402203329,1768596640810,-500.0,0.00016437,2]
[402203330,1768596640820,-1248.0,0.00016438,2]
[402203331,1768596640829,-6045.66945179,0.00016442,2]
[402203332,1768596640840,-331.96649877,0.00016466,2]
[402203333,1768596640849,-500.0,0.00016477,2]
[402203334,1768596640859,-500.0,0.00016477,2]
[402203335,1768596640869,-842.30369124,0.00016516,2]
[402203336,1768596640878,-19772.43134099,0.00016544,2]
[402203337,1768596640890,-13441.71464927,0.00016544,2]
[402203338,1768596640902,-8567.68070531,0.00016544,2]
[402203339,1768596640913,-103.17330443,0.00016544,2]
[402203340,1768596640922,-500.0,0.0001671,2]
[402203341,1768596640931,-39511.06,0.00016711,2]
[402203342,1768596640940,-11478.65,0.00016711,2]
[402203343,1768596640949,-16169.74049993,0.00016768,2]
[402203344,1768596640959,-322.6107,0.00016787,2]
[402203345,1768596640969,-174.61919141,0.00016787,2]
[402203346,1768596640978,-574.12855637,0.00016787,2]
[402203347,1768596640988,-620.0,0.00016787,2]
[402203348,1768596640997,-747.80937859,0.00016787,2]
[402203349,1768596641011,-250.0,0.00016787,2]
[402203350,1768596641021,-250.0,0.00016787,2]
[402203351,1768596641031,-250.0,0.00016787,2]
[402203352,1768596641040,-1239.0,0.00016787,2]
[402203353,1768596641060,-250.0,0.00016787,2]
[402203354,1768596641079,-250.0,0.00016787,2]
[402203355,1768596641098,-500.0,0.00016787,2]
[402203356,1768596641107,-250.0,0.00016787,2]
[402203357,1768596641118,-500.0,0.00016787,2]
[402203358,1768596641127,-250.0,0.00016787,2]
[402203359,1768596641138,-500.0,0.00016787,2]
[402203360,1768596641147,-250.0,0.00016787,2]
[402203361,1768596641158,-250.0,0.00016787,2]
[402203362,1768596641167,-250.0,0.00016787,2]
[402203363,1768596641176,-250.0,0.00016787,2]
[402203364,1768596641185,-2000.0,0.00016787,2]
[402203365,1768596641194,-2000.0,0.00016787,2]
[402203366,1768596641203,-2000.0,0.00016787,2]
[402203367,1768596641212,-2000.0,0.00016787,2]
[402203368,1768596641221,-1449.87796751,0.00016787,2]
[402203369,1768596641230,-1000.0,0.00016787,2]
[402203370,1768596641239,-1000.0,0.00016787,2]
[402203371,1768596641248,-1000.0,0.00016787,2]
[402203372,1768596641482,-1000.0,0.00016787,2]
[402203373,1768596641491,-1000.0,0.00016787,2]
[402203374,1768596641501,-1000.0,0.00016787,2]
[402203375,1768596641511,-1000.0,0.00016787,2]
[402203376,1768596641521,-1000.0,0.00016787,2]
[402203377,1768596641530,-1000.0,0.00016787,2]
[402203378,1768596641539,-1000.0,0.00016787,2]
[402203379,1768596641547,-1000.0,0.00016787,2]
[402203380,1768596641557,-1086.2,0.000168,2]
[402203381,1768596641566,-6045.66945179,0.00016806,2]
[402203382,1768596641575,-1500.0,0.00016868,2]
[402203383,1768596641584,-16169.74049993,0.00016894,2]
[402203384,1768596641593,-500.0,0.00016899,2]
[402203385,1768596641602,-150.0,0.00016899,2]
[402203386,1768596641611,-152.84284681,0.00016899,2]
[402203387,1768596641621,-500.0,0.00016899,2]
[402203388,1768596641629,-150.0,0.00016899,2]
[402203389,1768596641638,-150.0,0.00016899,2]
[402203390,1768596641647,-161.71648892,0.00016899,2]
[402203391,1768596641656,-500.0,0.00016899,2]
[402203392,1768596641665,-221.72177176,0.00016899,2]
[402203393,1768596641674,-500.0,0.00016899,2]
[402203394,1768596641683,-150.0,0.00016899,2]
[402203395,1768596641692,-1357.0,0.00016899,2]
[402203396,1768596641701,-500.0,0.00016899,2]
[402203397,1768596641709,-150.0,0.00016899,2]
[402203398,1768596641718,-150.0,0.00016899,2]
[402203399,1768596641727,-150.0,0.00016899,2]
[402203400,1768596641735,-500.0,0.00016899,2]
[402203401,1768596641744,-500.0,0.00016899,2]
[402203402,1768596641753,-500.0,0.00016899,2]
[402203403,1768596641762,-150.0,0.00016899,2]
[402203404,1768596641773,-150.0,0.00016899,2]
[402203405,1768596641782,-150.0,0.00016899,2]
[402203406,1768596641791,-500.0,0.00016899,2]
[402203407,1768596641800,-500.0,0.00016901,2]
[402203408,1768596641810,-331.96649877,0.00016944,2]
[402203409,1768596641819,-500.0,0.00016954,2]
[402203410,1768596641827,-150.0,0.00016954,2]
[402203411,1768596641836,-500.0,0.00016954,2]
[402203412,1768596641845,-150.0,0.00016954,2]
[402203413,1768596641854,-150.0,0.00016954,2]
[402203414,1768596641864,-500.0,0.00016954,2]
[402203415,1768596641873,-500.0,0.00016954,2]
[402203416,1768596641881,-150.0,0.00016954,2]
[402203417,1768596641891,-1357.0,0.00016954,2]
[402203418,1768596641901,-500.0,0.00016954,2]
[402203419,1768596641911,-150.0,0.00016954,2]
[402203420,1768596641920,-150.0,0.00016954,2]
[402203421,1768596641930,-500.0,0.00016954,2]
[402203422,1768596641939,-500.0,0.00016954,2]
[402203423,1768596641947,-500.0,0.00016954,2]
[402203424,1768596641956,-150.0,0.00016954,2]
[402203425,1768596641966,-500.0,0.00016954,2]
[402203426,1768596641975,-842.30369124,0.00016977,2]
[402203427,1768596641984,-250.0,0.00017,2]
[402203428,1768596641993,-500.0,0.00017009,2]
[402203429,1768596642002,-150.0,0.00017009,2]
[402203430,1768596642015,-150.0,0.00017009,2]
[402203431,1768596642024,-500.0,0.00017009,2]
[402203432,1768596642033,-150.0,0.00017009,2]
[402203433,1768596642042,-500.0,0.00017009,2]
[402203434,1768596642053,-500.0,0.00017009,2]
[402203435,1768596642063,-150.0,0.00017009,2]
[402203436,1768596642072,-1357.0,0.00017009,2]
[402203437,1768596642083,-500.0,0.00017009,2]
[402203438,1768596642092,-200.0,0.00017009,2]
[402203439,1768596642102,-150.0,0.00017009,2]
[402203440,1768596642112,-500.0,0.00017009,2]
[402203441,1768596642122,-153.41886511,0.00017009,2]
[402203442,1768596642131,-500.0,0.00017009,2]
[402203443,1768596642141,-150.0,0.00017009,2]
[402203444,1768596642150,-361.09943952,0.00017009,2]
[402203445,1768596642159,-16169.74049993,0.0001702,2]
[402203446,1768596642169,-433.0,0.00017047,2]
[402203447,1768596642178,-500.0,0.00017063,2]
[402203448,1768596642187,-150.0,0.00017063,2]
[402203449,1768596642196,-150.0,0.00017063,2]
[402203450,1768596642205,-500.0,0.00017063,2]
[402203451,1768596642215,-155.78864891,0.00017063,2]
[402203452,1768596642224,-500.0,0.00017063,2]
[402203453,1768596642233,-500.0,0.00017063,2]
[402203454,1768596642242,-204.47202902,0.00017063,2]
[402203455,1768596642251,-1357.0,0.00017063,2]
[402203456,1768596642260,-500.0,0.00017063,2]
[402203457,1768596642270,-207.66964705,0.00017063,2]
[402203458,1768596642278,-500.0,0.00017063,2]
[402203459,1768596642288,-500.0,0.00017063,2]
[402203460,1768596642297,-150.0,0.00017063,2]
[402203461,1768596642305,-500.0,0.00017118,2]
[402203462,1768596642315,-150.0,0.00017118,2]
[402203463,1768596642323,-243.58384155,0.00017118,2]
[402203464,1768596642332,-500.0,0.00017118,2]
[402203465,1768596642341,-563.11024684,0.00017118,2]
[402203466,1768596642350,-1357.0,0.00017118,2]
[402203467,1768596642359,-500.0,0.00017118,2]
[402203468,1768596642369,-168.75385845,0.00017118,2]
[402203469,1768596642377,-360.09047259,0.00017118,2]
[402203470,1768596642387,-213.10851229,0.00017118,2]
[402203471,1768596642396,-483.56,0.00017126,2]
[402203472,1768596642405,-483.56,0.00017126,2]
[402203473,1768596642414,-483.56,0.00017126,2]
[402203474,1768596642423,-483.56,0.00017126,2]
[402203475,1768596642432,-483.56,0.00017126,2]
[402203476,1768596642440,-483.56,0.00017126,2]
[402203477,1768596642449,-483.56,0.00017126,2]
[402203478,1768596642458,-483.56,0.00017126,2]
[402203479,1768596642467,-971.85,0.00017126,2]
[402203480,1768596642476,-483.56,0.00017134,2]
[402203481,1768596642485,-483.56,0.00017134,2]
[402203482,1768596642494,-483.56,0.00017134,2]
[402203483,1768596642503,-483.56,0.00017134,2]
[402203484,1768596642512,-483.56,0.00017134,2]
[402203485,1768596642521,-483.56,0.00017134,2]
[402203486,1768596642530,-483.56,0.00017134,2]
[402203487,1768596642539,-483.56,0.00017134,2]
[402203488,1768596642548,-483.56,0.00017134,2]
[402203489,1768596642557,-483.56,0.00017134,2]
[402203490,1768596642566,-483.56,0.00017134,2]
[402203491,1768596642575,-196.69,0.00017134,2]
[402203492,1768596642583,-483.56,0.00017134,2]
[402203493,1768596642593,-483.56,0.00017134,2]
[402203494,1768596642602,-483.56,0.00017134,2]
[402203495,1768596642610,-483.56,0.00017134,2]
[402203496,1768596642619,-483.56,0.00017134,2]
[402203497,1768596642629,-483.56,0.00017134,2]
[402203498,1768596642638,-966.04,0.00017134,2]
[402203499,1768596642646,-483.56,0.00017134,2]
[402203500,1768596642656,-483.56,0.00017134,2]
[402203501,1768596642665,-150.0,0.00017134,2]
[402203502,1768596642674,-197.60297119,0.00017144,2]
[402203503,1768596642682,-524.10082705,0.00017144,2]
[402203504,1768596642691,-16169.74049993,0.00017145,2]
[402203505,1768596642700,-6045.66945179,0.00017171,2]
[402203506,1768596642709,-500.0,0.00017173,2]
[402203507,1768596642718,-500.0,0.00017173,2]
[402203508,1768596642727,-1357.0,0.00017173,2]
[402203509,1768596642736,-500.0,0.00017173,2]
[402203510,1768596642745,-200.0,0.00017174,2]
[402203511,1768596642754,-250.0,0.00017183,2]
[402203512,1768596642763,-150.0,0.00017201,2]
[402203513,1768596642772,-500.0,0.00017228,2]
[402203514,1768596642781,-500.0,0.00017228,2]
[402203515,1768596642790,-1357.0,0.00017228,2]
[402203516,1768596642799,-500.0,0.00017228,2]
[402203517,1768596642807,-165.03,0.00017261,2]
[402203518,1768596642816,-16169.74049993,0.00017271,2]
[402203519,1768596642825,-500.0,0.00017283,2]
[402203520,1768596642834,-500.0,0.00017283,2]
[402203521,1768596642843,-1357.0,0.00017283,2]
[402203522,1768596642852,-500.0,0.00017283,2]
[402203523,1768596642861,-11900.0,0.000173,6]
[402203524,1768596642871,-181.08010149,0.00017335,2]
[402203525,1768596642879,-595.37131296,0.00017335,2]
[402203526,1768596642888,-500.0,0.00017337,2]
[402203527,1768596642898,-500.0,0.00017337,2]
[402203528,1768596642907,-1357.0,0.00017337,2]
[402203529,1768596642915,-500.0,0.00017337,2]
[402203531,1768596642925,-835.0,0.0001736,2]
[402203532,1768596642933,-835.0,0.0001736,2]
[402203534,1768596642942,-3182.0,0.0001738,2]
[402203535,1768596642951,-500.0,0.00017392,2]
[402203536,1768596642960,-500.0,0.00017392,2]
[402203537,1768596642969,-1357.0,0.00017392,2]
[402203538,1768596642978,-272.48568657,0.00017392,2]
[402203539,1768596642987,-16169.74049993,0.00017397,2]
[402203540,1768596642997,-1000.0,0.000174,2]
[402203541,1768596643008,-15800.0,0.000174,6]
[402203542,1768596643019,-3182.0,0.00017402,2]
[402203543,1768596643029,-267.79728294,0.00017416,2]
[402203544,1768596643038,-331.96649877,0.00017422,2]
[402203545,1768596643048,-1000.0,0.00017424,2]
[402203546,1768596643057,-842.30369124,0.00017439,2]
[402203547,1768596643066,-304.71603956,0.0001744,2]
[402203548,1768596643077,-500.0,0.00017447,2]
[402203549,1768596643086,-1357.0,0.00017447,2]
[402203550,1768596643096,-155.53654205,0.00017466,2]
[402203552,1768596643105,-5154.42589326,0.00017473,2]
[402203553,1768596643114,-2000.0,0.000175,2]
[402203554,1768596643123,-19800.0,0.000175,6]
[402203555,1768596643132,-500.0,0.00017502,2]
[402203556,1768596643142,-1357.0,0.00017502,2]
[402203557,1768596643152,-1313.0,0.00017517,2]
[402203558,1768596643161,-16169.74049993,0.00017523,2]
[402203559,1768596643170,-6045.66945179,0.00017535,2]
[402203561,1768596643179,-500.0,0.00017546,2]
[402203563,1768596643189,-536.90106267,0.00017557,2]
[402203565,1768596643199,-1357.0,0.00017557,2]
[402203567,1768596643208,-1000.0,0.000176,2]
[402203568,1768596643217,-375.64,0.000176,2]
[402203569,1768596643226,-3900.0,0.000176,6]
[402203570,1768596643236,-150.0,0.0001761,2]
[402203571,1768596643245,-500.0,0.0001761,2]
[402203572,1768596643255,-1357.0,0.00017611,2]
[402203573,1768596643264,-600.0,0.00017622,2]
[402203574,1768596643274,-3678.55702581,0.0001764,2]
[402203575,1768596643284,-1313.0,0.00017644,2]
[402203576,1768596643293,-16169.74049993,0.00017648,2]
[402203577,1768596643302,-150.0,0.00017665,3]
[402203578,1768596643311,-1357.0,0.00017666,2]
[402203579,1768596643320,-246.1,0.00017675,2]
[402203580,1768596643330,-150.0,0.00017691,2]
[402203581,1768596643339,-1000.0,0.00017698,2]
[402203582,1768596643348,-255.38896935,0.00017698,2]
[402203583,1768596643357,-276.22792842,0.00017698,2]
[402203584,1768596643367,-213.63364475,0.00017698,2]
[402203585,1768596643376,-150.0,0.00017698,2]
[402203586,1768596643386,-3900.0,0.000177,6]
[402203587,1768596643396,-4834.0043,0.00017701,2]
[402203588,1768596643405,-1357.0,0.00017721,2]
[402203589,1768596643414,-9999.99,0.00017728,2]
[402203590,1768596643424,-8935.33,0.00017728,2]
[402203591,1768596643434,-5890.31,0.00017728,2]
[402203592,1768596643443,-9999.99,0.00017728,2]
[402203593,1768596643452,-499.99,0.00017728,2]
[402203594,1768596643462,-299.99,0.00017728,4]
[402203595,1768596643471,-5714.12190997,0.00017728,2]
[402203598,1768596643894,-25101.01809003,0.00017728,2]
[402203599,1768596643903,-9999.99,0.00017728,2]
[402203600,1768596643912,-150.99,0.00017728,2]
[402203601,1768596643921,-462.84,0.00017728,2]
[402203602,1768596643930,-999.99,0.00017728,2]
[402203603,1768596643939,-19999.99,0.00017728,2]
[402203604,1768596643948,-9382.95,0.00017728,2]
[402203605,1768596643956,-2972.58,0.00017728,2]
[402203606,1768596643965,-150.99,0.00017728,2]
[402203607,1768596643974,-196.02282972,0.0001773,2]
[402203608,1768596643983,-150.0,0.00017735,2]
[402203609,1768596643991,-150.0,0.00017736,2]
[402203610,1768596644000,-1000.0,0.00017745,2]
[402203611,1768596644012,-1000.0,0.00017749,2]
[402203612,1768596644020,-215.2744525,0.00017753,2]
[402203613,1768596644030,-1000.0,0.00017758,2]
[402203614,1768596644041,-150.0,0.00017768,3]
[402203615,1768596644051,-2351.0,0.00017773,2]
[402203616,1768596644060,-16169.74049993,0.00017774,2]
[402203617,1768596644070,-1357.0,0.00017776,2]
[402203618,1768596644078,-150.0,0.00017776,2]
[402203619,1768596644090,-500.0,0.0001778,2]
[402203620,1768596644099,-1000.0,0.00017787,2]
[402203621,1768596644108,-500.0,0.00017799,2]
[402203622,1768596644117,-500.0,0.00017799,2]
[402203623,1768596644126,-2503.5,0.00017799,2]
[402203624,1768596644136,-1000.0,0.000178,2]
[402203625,1768596644145,-3900.0,0.000178,6]
[402203626,1768596644154,-1000.0,0.00017802,2]
[402203627,1768596644164,-614.653,0.00017806,2]
[402203628,1768596644173,-161.805,0.00017806,2]
[402203629,1768596644182,-1331.0,0.00017806,2]
[402203630,1768596644192,-1406.895,0.00017806,2]
[402203631,1768596644201,-516.87,0.00017806,2]
[402203632,1768596644211,-1268.0,0.00017806,2]
[402203633,1768596644220,-566.0,0.00017806,2]
[402203634,1768596644229,-6559.0,0.00017806,2]
[402203635,1768596644239,-257.234,0.00017806,2]
[402203636,1768596644248,-2442.274,0.00017806,2]
[402203637,1768596644258,-500.0,0.00017808,2]
[402203638,1768596644267,-480.0,0.00017808,2]
[402203639,1768596644276,-1000.0,0.00017815,2]
[402203640,1768596644285,-1000.0,0.00017817,2]
[402203641,1768596644294,-2000.0,0.0001782,2]
[402203642,1768596644304,-2000.0,0.0001782,2]
[402203643,1768596644313,-1000.0,0.00017821,2]
[402203644,1768596644322,-187.55807195,0.00017829,2]
[402203645,1768596644331,-500.0,0.00017829,2]
[402203646,1768596644340,-107837.66791739,0.0001783,2]
[402203647,1768596644349,-1357.0,0.00017831,2]
[402203648,1768596644358,-1000.0,0.00017834,2]
[402203649,1768596644367,-1000.0,0.00017837,2]
[402203650,1768596644376,-1000.0,0.00017844,2]
[402203651,1768596644386,-1000.0,0.00017845,2]
[402203652,1768596644395,-150.0,0.00017852,2]
[402203653,1768596644403,-150.0,0.00017853,2]
[402203654,1768596644412,-1313.0,0.00017854,2]
[402203655,1768596644421,-200.0,0.00017856,2]
[402203656,1768596644430,-500.0,0.00017863,2]
[402203657,1768596644440,-480.0,0.00017863,2]
[402203658,1768596644450,-1000.0,0.00017864,2]
[402203659,1768596644459,-1313.0,0.00017867,2]
[402203660,1768596644469,-1704.0,0.00017869,2]
[402203661,1768596644478,-1313.0,0.0001787,2]
[402203662,1768596644487,-187.78006525,0.00017883,2]
[402203663,1768596644497,-617.40005154,0.00017883,2]
[402203664,1768596644506,-1000.0,0.00017884,2]
[402203665,1768596644515,-1357.0,0.00017885,2]
[402203666,1768596644524,-1000.0,0.00017888,2]
[402203667,1768596644765,-1000.0,0.00017888,2]
[402203668,1768596644775,-1000.0,0.00017892,2]
[402203669,1768596644785,-171.38516895,0.00017894,2]
[402203670,1768596644795,-222.51246168,0.00017899,2]
[402203671,1768596644804,-500.0,0.00017899,2]
[402203672,1768596644814,-375.64,0.00017899,2]
[402203673,1768596644823,-10000.0,0.000179,2]
[402203674,1768596644832,-331.96649877,0.000179,2]
[402203675,1768596644842,-14308.24200541,0.000179,3]
[402203676,1768596644851,-6045.66945179,0.000179,2]
[402203677,1768596644860,-3900.0,0.000179,6]
[402203678,1768596644869,-842.30369124,0.000179,2]
[402203679,1768596644878,-196.02282972,0.000179,2]
[402203680,1768596644888,-5981.27033779,0.000179,2]
[402203681,1768596644897,-184.87505214,0.000179,3]
[402203682,1768596644907,-3222.61256831,0.000179,2]
[402203683,1768596644930,-839.15,0.000179,2]
[402203684,1768596644956,-7301.2,0.000179,2]
[402203685,1768596644967,-4806.77793162,0.000179,2]
[402203686,1768596644977,-685.62030484,0.000179,2]
[402203687,1768596644986,-19437.66591942,0.000179,2]
[402203688,1768596644996,-13762.0,0.000179,2]
[402203689,1768596645006,-150.0,0.00017909,2]
[402203690,1768596645019,-500.0,0.00017918,2]
[402203691,1768596645029,-480.0,0.00017918,2]
[402203692,1768596645038,-1000.0,0.00017922,2]
[402203693,1768596645050,-1357.0,0.0001794,2]
[402203694,1768596645058,-158.87,0.00017957,2]
[402203695,1768596645068,-600.0,0.00017962,2]
[402203696,1768596645078,-1000.0,0.00017966,2]
[402203697,1768596645087,-500.0,0.0001797,2]
[402203698,1768596645096,-700.0,0.0001797,2]
[402203699,1768596645106,-500.0,0.0001797,2]
[402203700,1768596645115,-700.0,0.0001797,2]
[402203701,1768596645124,-500.0,0.0001797,2]
[402203702,1768596645134,-500.0,0.0001797,2]
[402203703,1768596645143,-1100.0,0.0001797,2]
[402203704,1768596645153,-500.0,0.0001797,2]
[402203705,1768596645163,-500.0,0.0001797,2]
[402203706,1768596645173,-1000.0,0.00017972,2]
[402203707,1768596645182,-635.07593505,0.00017972,2]
[402203708,1768596645191,-500.0,0.00017972,2]
[402203709,1768596645201,-480.0,0.00017972,2]
[402203710,1768596645210,-14603.0,0.00017973,2]
[402203711,1768596645221,-500.0,0.00017973,2]
[402203712,1768596645230,-30478.0,0.00017973,2]
[402203713,1768596645239,-500.0,0.00017973,2]
[402203714,1768596645249,-150.0,0.00017973,2]
[402203715,1768596645258,-1000.0,0.00017984,2]
[402203716,1768596645267,-566.80876335,0.00017986,2]
[402203717,1768596645276,-285.0,0.00017987,2]
[402203718,1768596645285,-566.80876335,0.0001799,2]
[402203719,1768596645294,-566.80876335,0.0001799,2]
[402203720,1768596645303,-789.77249293,0.00017992,2]
[402203721,1768596645312,-151.0,0.00017993,2]
[402203722,1768596645321,-1357.0,0.00017995,2]
[402203723,1768596645330,-500.0,0.00017995,2]
[402203724,1768596645339,-500.0,0.00017995,2]
[402203725,1768596645348,-508.16450939,0.00017995,2]
[402203726,1768596645357,-150.0,0.00017995,2]
[402203727,1768596645366,-90045.2805631,0.00017996,2]
[402203728,1768596645375,-241032.4725691,0.00017996,2]
[402203729,1768596645385,-5269.2226296,0.00017996,2]
[402203730,1768596645394,-151.0,0.00017997,2]
[402203731,1768596645403,-150.0,0.00017999,2]
[402203732,1768596645412,-176.82451653,0.00017999,2]
[402203733,1768596645421,-156.287,0.00017999,2]
[402203734,1768596645430,-300.0,0.00017999,2]
[402203735,1768596645440,-666.0,0.00017999,2]
[402203736,1768596645449,-666.0,0.00017999,2]
[402203737,1768596645458,-300.0,0.00017999,2]
[402203738,1768596645467,-300.0,0.00017999,2]
[402203739,1768596645477,-300.0,0.00017999,2]
[402203740,1768596645486,-300.0,0.00017999,2]
[402203741,1768596645495,-666.0,0.00017999,2]
[402203742,1768596645504,-300.0,0.00017999,2]
[402203743,1768596645513,-1250.25080729,0.00017999,2]
[402203744,1768596645522,-300.0,0.00017999,2]
[402203745,1768596645531,-300.0,0.00017999,2]
[402203746,1768596645540,-666.0,0.00017999,2]
[402203747,1768596645549,-2083683.34693703,0.00018,2]
[402203748,1768596645558,-3232798.23965054,0.00018,2]
[402203749,1768596645570,-1944.18533295,0.00018,2]
[402203750,1768596645689,-560.94300155,0.00018,2]
[402203751,1768596645700,-9200.13439859,0.00018,2]
[402203752,1768596645711,-313.2364755,0.00018,2]
[402203753,1768596645722,-7307.54995,0.00018,2]
[402203754,1768596645732,-1137.100178,0.00018,2]
[402203755,1768596645743,-27115.5364935,0.00018,2]
[402203757,1768596646210,-350.74895663,0.00017134,2]
[402203758,1768596646237,-132.81104337,0.00017134,2]
[402203759,1768596646247,-51436.81719926,0.00018,2]
[402203762,1768596647102,-4824.0,0.00017806,2]
[402203763,1768596647111,-746.45453968,0.00018,2]
[402203764,1768596647122,-337.24381303,0.00018,2]
[402203765,1768596647136,-10571.57237864,0.00018,2]
[402203766,1768596647165,-629.08183438,0.00018,2]
[402203767,1768596667951,8358.74410956,0.0001459,2]
[402203768,1768596667977,10000.01,0.0001459,2]
[402203769,1768596668002,10000.01,0.0001459,2]
[402203770,1768596668031,10000.01,0.0001459,2]
[402203771,1768596668063,10000.01,0.0001459,2]
[402203772,1768596668090,10000.01,0.0001459,2]
[402203773,1768596694521,4233.578,0.00014298,2]
[402203774,1768596694577,271.295,0.00014298,2]
[402203775,1768596872040,1030.43786743,0.00014497,2]
[402203776,1768596886487,2225.07072574,0.00014497,2]
[402203777,1768596956179,1989.831284,0.00014515,2]
[402203778,1768597037316,163.43602424,0.00014497,2]
[402203779,1768597117081,86.36109859,0.00014497,2]
[402203780,1768597117104,85.17211231,0.00014497,2]
[402203781,1768597150216,500.0,0.0001449,2]
[402203782,1768597167545,163.43602423,0.00014499,2]